[Event "Titled Tuesday Blitz February 28 Early 2023"]
[White "Goltseva, Ekaterina"]
[Black "Kucuksari, Kaan"]
[WhiteFideId "24173770"]
[BlackFideId "6380166"]
[WhiteElo "2200"]
[BlackElo "2364"]
[Result "0-1"]
[Round "07"]
[TimeControl "180+2"]
[Date "2023.02.28"]
[WhiteClock "0:00:07"]
[BlackClock "0:00:12"]

1. d4 {[%clk 0:02:53]}  f5 {[%clk 0:02:59]} 2. Nf3 {[%clk 0:02:45]}  Nf6 {[%clk 0:02:58]} 3. e3 {[%clk 0:02:39]}  b6 {[%clk 0:02:57]} 4. Bd3 {[%clk 0:02:38]}  e6 {[%clk 0:02:57]} 5. O-O {[%clk 0:02:38]}  Bb7 {[%clk 0:02:58]} 6. c4 {[%clk 0:02:38]}  Be7 {[%clk 0:02:58]} 7. Nc3 {[%clk 0:02:37]}  O-O {[%clk 0:02:59]} 8. Qe2 {[%clk 0:02:36]}  Ne4 {[%clk 0:02:59]} 9. Nd2 {[%clk 0:02:35]}  Nxc3 {[%clk 0:02:58]} 10. bxc3 {[%clk 0:02:36]}  d6 {[%clk 0:02:58]} 11. f4 {[%clk 0:02:31]}  Nd7 {[%clk 0:02:58]} 12. e4 {[%clk 0:02:31]}  Kh8 {[%clk 0:02:53]} 13. Bb2 {[%clk 0:02:22]}  Rf6 {[%clk 0:02:41]} 14. d5 {[%clk 0:02:18]}  Nc5 {[%clk 0:02:39]} 15. Bc2 {[%clk 0:02:17]}  exd5 {[%clk 0:02:21]} 16. cxd5 {[%clk 0:02:13]}  fxe4 {[%clk 0:02:20]} 17. c4 {[%clk 0:02:11]}  Bc8 {[%clk 0:02:05]} 18. Nxe4 {[%clk 0:02:06]}  Nxe4 {[%clk 0:02:03]} 19. Bxe4 {[%clk 0:02:02]}  Bd7 {[%clk 0:01:59]} 20. Bxf6 {[%clk 0:01:57]}  Bxf6 {[%clk 0:02:00]} 21. Qh5 {[%clk 0:01:55]}  Qg8 {[%clk 0:01:46]} 22. Rae1 {[%clk 0:01:50]}  g6 {[%clk 0:01:37]} 23. Qh6 {[%clk 0:01:37]}  Rf8 {[%clk 0:01:17]} 24. Kh1 {[%clk 0:01:16]}  Bg7 {[%clk 0:01:06]} 25. Qh4 {[%clk 0:01:08]}  Qf7 {[%clk 0:01:07]} 26. Bd3 {[%clk 0:01:04]}  Bf6 {[%clk 0:01:05]} 27. Qg3 {[%clk 0:01:03]}  Qg7 {[%clk 0:01:04]} 28. f5 {[%clk 0:00:52]}  Be5 {[%clk 0:01:02]} 29. Qh3 {[%clk 0:00:48]}  Qf6 {[%clk 0:00:49]} 30. g4 {[%clk 0:00:33]}  g5 {[%clk 0:00:43]} 31. Qf3 {[%clk 0:00:30]}  Kg7 {[%clk 0:00:42]} 32. Kg2 {[%clk 0:00:30]}  Rg8 {[%clk 0:00:27]} 33. Rh1 {[%clk 0:00:28]}  h5 {[%clk 0:00:26]} 34. gxh5 {[%clk 0:00:21]}  g4 {[%clk 0:00:26]} 35. Qe4 {[%clk 0:00:20]}  Kh8 {[%clk 0:00:18]} 36. Ref1 {[%clk 0:00:15]}  Rg5 {[%clk 0:00:15]} 37. Qe3 {[%clk 0:00:11]}  Rxh5 {[%clk 0:00:13]} 38. h3 {[%clk 0:00:10]}  gxh3+ {[%clk 0:00:08]} 39. Rxh3 {[%clk 0:00:10]}  Qg7+ {[%clk 0:00:08]} 40. Kh1 {[%clk 0:00:10]}  Qg4 {[%clk 0:00:08]} 41. Rf3 {[%clk 0:00:06]}  Bd4 {[%clk 0:00:05]} 42. Rxh5+ {[%clk 0:00:04]}  Qxh5+ {[%clk 0:00:05]} 43. Rh3 {[%clk 0:00:04]}  Bxe3 {[%clk 0:00:04]} 44. Rxh5+ {[%clk 0:00:05]}  Kg7 {[%clk 0:00:05]} 45. Rh3 {[%clk 0:00:05]}  Bd4 {[%clk 0:00:05]} 46. Rg3+ {[%clk 0:00:05]}  Kf7 {[%clk 0:00:05]} 47. Rf3 {[%clk 0:00:05]}  a5 {[%clk 0:00:04]} 48. Kg2 {[%clk 0:00:05]}  Kf6 {[%clk 0:00:04]} 49. Rh3 {[%clk 0:00:05]}  Be5 {[%clk 0:00:04]} 50. Rh7 {[%clk 0:00:05]}  Bxf5 {[%clk 0:00:04]} 51. Bxf5 {[%clk 0:00:04]}  Kxf5 {[%clk 0:00:05]} 52. Rxc7 {[%clk 0:00:05]}  Bd4 {[%clk 0:00:05]} 53. Rc6 {[%clk 0:00:04]}  Bc5 {[%clk 0:00:05]} 54. Kf3 {[%clk 0:00:05]}  Ke5 {[%clk 0:00:06]} 55. Rc8 {[%clk 0:00:05]}  Kd4 {[%clk 0:00:07]} 56. Kf4 {[%clk 0:00:04]}  a4 {[%clk 0:00:06]} 57. Ra8 {[%clk 0:00:03]}  a3 {[%clk 0:00:06]} 58. Ra4 {[%clk 0:00:03]}  Kc3 {[%clk 0:00:07]} 59. Kf5 {[%clk 0:00:02]}  Kb2 {[%clk 0:00:08]} 60. Ra6 {[%clk 0:00:02]}  Kxa2 {[%clk 0:00:08]} 61. Ke6 {[%clk 0:00:02]}  Kb2 {[%clk 0:00:08]} 62. Kd7 {[%clk 0:00:02]}  a2 {[%clk 0:00:08]} 63. Kc6 {[%clk 0:00:02]}  a1=Q {[%clk 0:00:08]} 64. Rxa1 {[%clk 0:00:03]}  Kxa1 {[%clk 0:00:09]} 65. Kb5 {[%clk 0:00:04]}  Kb2 {[%clk 0:00:10]} 66. Kc6 {[%clk 0:00:05]}  Kb3 {[%clk 0:00:10]} 67. Kb5 {[%clk 0:00:06]}  Kc3 {[%clk 0:00:11]} 68. Kc6 {[%clk 0:00:07]}  Kxc4 {[%clk 0:00:12]} 0-1


[Site "https://www.chess.com"]

[Event "Titled Tuesday Blitz February 28 Early 2023"]
[White "Moroni, Luca Jr"]
[Black "Bochnicka, Vladimir"]
[WhiteFideId "865834"]
[BlackFideId "14943450"]
[WhiteElo "2569"]
[BlackElo "2094"]
[Result "1-0"]
[Round "07"]
[TimeControl "180+2"]
[Date "2023.02.28"]
[WhiteClock "0:02:13"]
[BlackClock "0:00:49"]

1. Nc3 {[%clk 0:03:00]}  d5 {[%clk 0:02:49]} 2. d4 {[%clk 0:02:58]}  Nf6 {[%clk 0:02:48]} 3. Bg5 {[%clk 0:02:57]}  e6 {[%clk 0:02:47]} 4. e4 {[%clk 0:02:57]}  dxe4 {[%clk 0:02:42]} 5. Nxe4 {[%clk 0:02:56]}  Be7 {[%clk 0:02:42]} 6. Bxf6 {[%clk 0:02:57]}  Bxf6 {[%clk 0:02:42]} 7. Nf3 {[%clk 0:02:57]}  Bd7 {[%clk 0:02:37]} 8. Bd3 {[%clk 0:02:56]}  Bc6 {[%clk 0:02:37]} 9. c3 {[%clk 0:02:56]}  h6 {[%clk 0:02:35]} 10. O-O {[%clk 0:02:56]}  O-O {[%clk 0:02:35]} 11. Qe2 {[%clk 0:02:56]}  Nd7 {[%clk 0:02:31]} 12. Rad1 {[%clk 0:02:56]}  Qe7 {[%clk 0:02:03]} 13. Rfe1 {[%clk 0:02:32]}  Rad8 {[%clk 0:01:59]} 14. c4 {[%clk 0:02:30]}  b6 {[%clk 0:01:49]} 15. Bb1 {[%clk 0:02:31]}  Bb7 {[%clk 0:01:48]} 16. Ng3 {[%clk 0:02:26]}  Rfe8 {[%clk 0:01:46]} 17. d5 {[%clk 0:02:25]}  exd5 {[%clk 0:01:38]} 18. Qc2 {[%clk 0:02:24]}  Qxe1+ {[%clk 0:01:03]} 19. Nxe1 {[%clk 0:02:22]}  g6 {[%clk 0:01:02]} 20. cxd5 {[%clk 0:02:19]}  Nc5 {[%clk 0:00:59]} 21. b4 {[%clk 0:02:15]}  Nd7 {[%clk 0:00:51]} 22. Nf3 {[%clk 0:02:13]}  Ne5 {[%clk 0:00:49]} 1-0


[Site "https://www.chess.com"]

[Event "Titled Tuesday Blitz February 28 Early 2023"]
[White "Aldokhin, Ivan"]
[Black "Postny, Evgeny"]
[WhiteFideId "24115720"]
[BlackFideId "2804344"]
[WhiteElo "2322"]
[BlackElo "2509"]
[Result "0-1"]
[Round "07"]
[TimeControl "180+2"]
[Date "2023.02.28"]
[WhiteClock "0:00:02"]
[BlackClock "0:00:30"]

1. e4 {[%clk 0:02:50]}  c5 {[%clk 0:02:59]} 2. Nf3 {[%clk 0:02:50]}  Nc6 {[%clk 0:02:58]} 3. d4 {[%clk 0:02:51]}  cxd4 {[%clk 0:02:58]} 4. Nxd4 {[%clk 0:02:52]}  e5 {[%clk 0:02:58]} 5. Nb5 {[%clk 0:02:43]}  a6 {[%clk 0:02:58]} 6. Nd6+ {[%clk 0:02:43]}  Bxd6 {[%clk 0:02:58]} 7. Qxd6 {[%clk 0:02:44]}  Qe7 {[%clk 0:02:59]} 8. Qd2 {[%clk 0:02:43]}  Nf6 {[%clk 0:02:58]} 9. Nc3 {[%clk 0:02:42]}  d6 {[%clk 0:02:57]} 10. b3 {[%clk 0:02:26]}  Be6 {[%clk 0:02:55]} 11. Ba3 {[%clk 0:02:07]}  Rd8 {[%clk 0:02:55]} 12. Nd5 {[%clk 0:02:04]}  Bxd5 {[%clk 0:02:52]} 13. exd5 {[%clk 0:02:04]}  Nd4 {[%clk 0:02:49]} 14. c3 {[%clk 0:01:57]}  Nf5 {[%clk 0:02:36]} 15. O-O-O {[%clk 0:01:42]}  O-O {[%clk 0:02:31]} 16. Bd3 {[%clk 0:01:39]}  e4 {[%clk 0:02:28]} 17. Rhe1 {[%clk 0:01:37]}  Rfe8 {[%clk 0:02:27]} 18. Bc2 {[%clk 0:01:22]}  Qc7 {[%clk 0:02:14]} 19. Qf4 {[%clk 0:01:13]}  Re5 {[%clk 0:01:49]} 20. c4 {[%clk 0:01:13]}  b5 {[%clk 0:01:38]} 21. Bb2 {[%clk 0:01:12]}  Rde8 {[%clk 0:01:38]} 22. Bxe5 {[%clk 0:01:06]}  Rxe5 {[%clk 0:01:39]} 23. Bxe4 {[%clk 0:00:59]}  Qa5 {[%clk 0:01:25]} 24. Bxf5 {[%clk 0:00:22]}  Rxe1 {[%clk 0:01:11]} 25. Qd2 {[%clk 0:00:18]}  Qa3+ {[%clk 0:01:03]} 26. Kb1 {[%clk 0:00:19]}  Rxd1+ {[%clk 0:01:01]} 27. Qxd1 {[%clk 0:00:19]}  bxc4 {[%clk 0:00:59]} 28. bxc4 {[%clk 0:00:19]}  g6 {[%clk 0:00:59]} 29. Bc2 {[%clk 0:00:18]}  Nd7 {[%clk 0:00:53]} 30. Qd3 {[%clk 0:00:14]}  Qb4+ {[%clk 0:00:51]} 31. Kc1 {[%clk 0:00:06]}  Qe1+ {[%clk 0:00:48]} 32. Kb2 {[%clk 0:00:04]}  Qxf2 {[%clk 0:00:47]} 33. Qg3 {[%clk 0:00:01]}  Qd4+ {[%clk 0:00:36]} 34. Qc3 {[%clk 0:00:02]}  Qg1 {[%clk 0:00:35]} 35. Qd2 {[%clk 0:00:02]}  Nc5 {[%clk 0:00:33]} 36. Bb3 {[%clk 0:00:02]}  Qxh2 {[%clk 0:00:31]} 37. Qf2 {[%clk 0:00:02]}  Nd3+ {[%clk 0:00:30]} 38. Kc3 {[%clk 0:00:02]}  Nxf2 {[%clk 0:00:30]} 0-1


[Site "https://www.chess.com"]

[Event "Titled Tuesday Blitz February 28 Early 2023"]
[White "Sielecki, Christof"]
[Black "Ozen, Bahadir"]
[WhiteFideId "4620437"]
[BlackFideId "6337058"]
[WhiteElo "2443"]
[BlackElo "2503"]
[Result "1-0"]
[Round "07"]
[TimeControl "180+2"]
[Date "2023.02.28"]
[WhiteClock "0:00:20"]
[BlackClock "0:00:09"]

1. e4 {[%clk 0:02:59]}  d6 {[%clk 0:02:59]} 2. d4 {[%clk 0:02:58]}  Nf6 {[%clk 0:03:00]} 3. Nc3 {[%clk 0:02:59]}  e5 {[%clk 0:03:01]} 4. Nf3 {[%clk 0:02:59]}  Nbd7 {[%clk 0:03:01]} 5. Rg1 {[%clk 0:02:59]}  g6 {[%clk 0:03:01]} 6. g4 {[%clk 0:02:58]}  Bg7 {[%clk 0:03:02]} 7. g5 {[%clk 0:02:54]}  Nh5 {[%clk 0:03:02]} 8. Be3 {[%clk 0:02:55]}  O-O {[%clk 0:03:01]} 9. Qd2 {[%clk 0:02:55]}  c6 {[%clk 0:03:01]} 10. O-O-O {[%clk 0:02:55]}  Re8 {[%clk 0:02:51]} 11. Kb1 {[%clk 0:02:54]}  Qe7 {[%clk 0:02:51]} 12. Be2 {[%clk 0:02:38]}  a6 {[%clk 0:02:49]} 13. h4 {[%clk 0:02:26]}  b5 {[%clk 0:02:47]} 14. dxe5 {[%clk 0:02:22]}  dxe5 {[%clk 0:02:47]} 15. Qd6 {[%clk 0:02:15]}  Qxd6 {[%clk 0:02:38]} 16. Rxd6 {[%clk 0:02:16]}  Nb8 {[%clk 0:02:39]} 17. Rgd1 {[%clk 0:01:54]}  Be6 {[%clk 0:02:39]} 18. Rd8 {[%clk 0:01:51]}  Nd7 {[%clk 0:02:18]} 19. R8xd7 {[%clk 0:01:51]}  Bxd7 {[%clk 0:02:18]} 20. Rxd7 {[%clk 0:01:52]}  Nf4 {[%clk 0:02:17]} 21. Bxf4 {[%clk 0:01:47]}  exf4 {[%clk 0:02:18]} 22. Bd3 {[%clk 0:01:40]}  Bxc3 {[%clk 0:01:53]} 23. bxc3 {[%clk 0:01:41]}  Rad8 {[%clk 0:01:54]} 24. Rc7 {[%clk 0:01:20]}  Rc8 {[%clk 0:01:52]} 25. Rxc8 {[%clk 0:01:16]}  Rxc8 {[%clk 0:01:53]} 26. c4 {[%clk 0:01:16]}  c5 {[%clk 0:01:41]} 27. Kb2 {[%clk 0:01:09]}  Rb8 {[%clk 0:01:38]} 28. Kc3 {[%clk 0:01:07]}  Kg7 {[%clk 0:01:35]} 29. Ne5 {[%clk 0:01:04]}  b4+ {[%clk 0:01:34]} 30. Kd2 {[%clk 0:01:01]}  Rd8 {[%clk 0:01:31]} 31. Ke2 {[%clk 0:00:57]}  f6 {[%clk 0:01:27]} 32. Ng4 {[%clk 0:00:53]}  fxg5 {[%clk 0:01:26]} 33. hxg5 {[%clk 0:00:54]}  a5 {[%clk 0:01:25]} 34. Kf3 {[%clk 0:00:53]}  a4 {[%clk 0:01:26]} 35. Ne5 {[%clk 0:00:49]}  Re8 {[%clk 0:00:20]} 36. Kxf4 {[%clk 0:00:45]}  h5 {[%clk 0:00:18]} 37. gxh6+ {[%clk 0:00:44]}  Kxh6 {[%clk 0:00:19]} 38. Ng4+ {[%clk 0:00:40]}  Kg7 {[%clk 0:00:19]} 39. e5 {[%clk 0:00:39]}  Rh8 {[%clk 0:00:19]} 40. e6 {[%clk 0:00:28]}  Rh1 {[%clk 0:00:18]} 41. Ke5 {[%clk 0:00:28]}  Kf8 {[%clk 0:00:15]} 42. Kf6 {[%clk 0:00:23]}  Re1 {[%clk 0:00:10]} 43. Ne5 {[%clk 0:00:23]}  Rxe5 {[%clk 0:00:08]} 44. Kxe5 {[%clk 0:00:22]}  Ke7 {[%clk 0:00:09]} 45. Bxg6 {[%clk 0:00:20]} 1-0


[Site "https://www.chess.com"]

[Event "Titled Tuesday Blitz February 28 Early 2023"]
[White "Fernandez Guillen, Ernesto J."]
[Black "Souleidis, Georgios"]
[WhiteFideId "3512428"]
[BlackFideId "4206827"]
[WhiteElo "2423"]
[BlackElo "2401"]
[Result "1-0"]
[Round "07"]
[TimeControl "180+2"]
[Date "2023.02.28"]
[WhiteClock "0:00:18"]
[BlackClock "0:00:05"]

1. e4 {[%clk 0:02:59]}  c5 {[%clk 0:02:59]} 2. Nf3 {[%clk 0:02:50]}  e6 {[%clk 0:02:59]} 3. d4 {[%clk 0:02:49]}  cxd4 {[%clk 0:02:58]} 4. Nxd4 {[%clk 0:02:50]}  Nf6 {[%clk 0:02:59]} 5. Bd3 {[%clk 0:02:46]}  d5 {[%clk 0:02:48]} 6. e5 {[%clk 0:02:45]}  Nfd7 {[%clk 0:02:47]} 7. f4 {[%clk 0:02:45]}  Nc6 {[%clk 0:02:46]} 8. c3 {[%clk 0:02:43]}  Nc5 {[%clk 0:02:42]} 9. Bc2 {[%clk 0:02:42]}  Qh4+ {[%clk 0:02:41]} 10. g3 {[%clk 0:02:41]}  Qh3 {[%clk 0:02:40]} 11. Qf3 {[%clk 0:02:37]}  Bd7 {[%clk 0:02:32]} 12. Be3 {[%clk 0:02:36]}  Nxd4 {[%clk 0:02:19]} 13. Bxd4 {[%clk 0:02:33]}  Ne4 {[%clk 0:02:19]} 14. Nd2 {[%clk 0:02:31]}  Nxd2 {[%clk 0:02:15]} 15. Kxd2 {[%clk 0:02:32]}  b6 {[%clk 0:01:58]} 16. f5 {[%clk 0:02:10]}  Bc5 {[%clk 0:01:49]} 17. fxe6 {[%clk 0:02:10]}  Bxe6 {[%clk 0:01:46]} 18. Ba4+ {[%clk 0:02:06]}  Ke7 {[%clk 0:01:39]} 19. Bxc5+ {[%clk 0:01:58]}  bxc5 {[%clk 0:01:39]} 20. Raf1 {[%clk 0:01:53]}  Rhd8 {[%clk 0:01:32]} 21. g4 {[%clk 0:01:34]}  Qxg4 {[%clk 0:01:02]} 22. Qxg4 {[%clk 0:01:28]}  Bxg4 {[%clk 0:01:03]} 23. Rhg1 {[%clk 0:01:27]}  Bh5 {[%clk 0:00:51]} 24. Rxg7 {[%clk 0:00:51]}  Bg6 {[%clk 0:00:51]} 25. h4 {[%clk 0:00:49]}  Kf8 {[%clk 0:00:40]} 26. Rgxf7+ {[%clk 0:00:38]}  Bxf7 {[%clk 0:00:39]} 27. e6 {[%clk 0:00:38]}  Ke7 {[%clk 0:00:37]} 28. exf7 {[%clk 0:00:38]}  Rf8 {[%clk 0:00:37]} 29. Be8 {[%clk 0:00:39]}  Raxe8 {[%clk 0:00:26]} 30. fxe8=Q+ {[%clk 0:00:40]}  Kxe8 {[%clk 0:00:25]} 31. Rg1 {[%clk 0:00:38]}  Rf2+ {[%clk 0:00:24]} 32. Kc1 {[%clk 0:00:37]}  Rf7 {[%clk 0:00:23]} 33. Rg5 {[%clk 0:00:31]}  Rd7 {[%clk 0:00:22]} 34. c4 {[%clk 0:00:30]}  dxc4 {[%clk 0:00:21]} 35. Rxc5 {[%clk 0:00:30]}  Rd4 {[%clk 0:00:20]} 36. h5 {[%clk 0:00:30]}  Rh4 {[%clk 0:00:16]} 37. Kc2 {[%clk 0:00:30]}  Kd7 {[%clk 0:00:16]} 38. Kc3 {[%clk 0:00:30]}  Kd6 {[%clk 0:00:16]} 39. Ra5 {[%clk 0:00:28]}  Kc6 {[%clk 0:00:08]} 40. Rxa7 {[%clk 0:00:19]}  Rxh5 {[%clk 0:00:08]} 41. Kxc4 {[%clk 0:00:19]}  Rh4+ {[%clk 0:00:08]} 42. Kb3 {[%clk 0:00:20]}  h5 {[%clk 0:00:08]} 43. Rh7 {[%clk 0:00:20]}  Rh1 {[%clk 0:00:08]} 44. a4 {[%clk 0:00:19]}  h4 {[%clk 0:00:08]} 45. Kb4 {[%clk 0:00:19]}  h3 {[%clk 0:00:08]} 46. Rh6+ {[%clk 0:00:19]}  Kb7 {[%clk 0:00:08]} 47. Ka5 {[%clk 0:00:18]}  Kc7 {[%clk 0:00:07]} 48. b4 {[%clk 0:00:19]}  h2 {[%clk 0:00:07]} 49. b5 {[%clk 0:00:19]}  Kb7 {[%clk 0:00:04]} 50. Rh7+ {[%clk 0:00:19]}  Kc8 {[%clk 0:00:05]} 51. b6 {[%clk 0:00:18]} 1-0


[Site "https://www.chess.com"]

[Event "Titled Tuesday Blitz February 28 Early 2023"]
[White "Wagner, Dennis"]
[Black "Karttunen, Mika"]
[WhiteFideId "24650684"]
[BlackFideId "502081"]
[WhiteElo "2470"]
[BlackElo "2396"]
[Result "1-0"]
[Round "07"]
[TimeControl "180+2"]
[Date "2023.02.28"]
[WhiteClock "0:01:05"]
[BlackClock "0:00:02"]

1. d4 {[%clk 0:03:00]}  Nf6 {[%clk 0:02:59]} 2. Nf3 {[%clk 0:03:00]}  g6 {[%clk 0:02:58]} 3. c4 {[%clk 0:03:01]}  d5 {[%clk 0:02:58]} 4. cxd5 {[%clk 0:03:00]}  Nxd5 {[%clk 0:02:58]} 5. e4 {[%clk 0:03:00]}  Nb6 {[%clk 0:02:55]} 6. Nc3 {[%clk 0:03:00]}  Bg7 {[%clk 0:02:55]} 7. Be2 {[%clk 0:02:59]}  O-O {[%clk 0:02:54]} 8. Be3 {[%clk 0:02:58]}  Nc6 {[%clk 0:02:53]} 9. O-O {[%clk 0:02:56]}  Bg4 {[%clk 0:02:49]} 10. d5 {[%clk 0:02:54]}  Ne5 {[%clk 0:02:28]} 11. Nxe5 {[%clk 0:02:52]}  Bxe2 {[%clk 0:02:27]} 12. Qxe2 {[%clk 0:02:50]}  Bxe5 {[%clk 0:02:26]} 13. Rad1 {[%clk 0:02:49]}  Qd7 {[%clk 0:01:49]} 14. f4 {[%clk 0:02:33]}  Bxc3 {[%clk 0:01:49]} 15. bxc3 {[%clk 0:02:34]}  Qa4 {[%clk 0:01:26]} 16. Rd4 {[%clk 0:02:29]}  Qa3 {[%clk 0:01:24]} 17. c4 {[%clk 0:02:22]}  c5 {[%clk 0:01:17]} 18. Rd3 {[%clk 0:02:07]}  Qb4 {[%clk 0:01:17]} 19. Rc1 {[%clk 0:02:07]}  Rac8 {[%clk 0:00:38]} 20. Rb3 {[%clk 0:02:06]}  Qa4 {[%clk 0:00:39]} 21. f5 {[%clk 0:02:07]}  Qd7 {[%clk 0:00:30]} 22. Bh6 {[%clk 0:02:05]}  Rfe8 {[%clk 0:00:29]} 23. Rg3 {[%clk 0:01:50]}  Qd6 {[%clk 0:00:16]} 24. e5 {[%clk 0:01:31]}  Qc7 {[%clk 0:00:09]} 25. e6 {[%clk 0:01:23]}  f6 {[%clk 0:00:04]} 26. fxg6 {[%clk 0:01:21]}  Qe5 {[%clk 0:00:04]} 27. Qxe5 {[%clk 0:01:05]}  fxe5 {[%clk 0:00:04]} 28. Rf1 {[%clk 0:01:06]}  hxg6 {[%clk 0:00:03]} 29. Rf7 {[%clk 0:01:06]}  Kh8 {[%clk 0:00:02]} 30. Bg7+ {[%clk 0:01:05]} 1-0


[Site "https://www.chess.com"]

[Event "Titled Tuesday Blitz February 28 Early 2023"]
[White "Matinian, Nikita"]
[Black "Ingebretsen, Jens E"]
[WhiteFideId "24129100"]
[BlackFideId "1522965"]
[WhiteElo "2422"]
[BlackElo "2213"]
[Result "0-1"]
[Round "07"]
[TimeControl "180+2"]
[Date "2023.02.28"]
[WhiteClock "0:00:04"]
[BlackClock "0:00:16"]

1. e4 {[%clk 0:02:56]}  c5 {[%clk 0:02:59]} 2. Nf3 {[%clk 0:02:56]}  Nc6 {[%clk 0:02:59]} 3. Bb5 {[%clk 0:02:56]}  Nf6 {[%clk 0:02:59]} 4. Nc3 {[%clk 0:02:56]}  a6 {[%clk 0:02:52]} 5. Bxc6 {[%clk 0:02:53]}  dxc6 {[%clk 0:02:53]} 6. e5 {[%clk 0:02:53]}  Nd5 {[%clk 0:02:53]} 7. Ne4 {[%clk 0:02:53]}  e6 {[%clk 0:02:50]} 8. d3 {[%clk 0:02:52]}  Be7 {[%clk 0:02:51]} 9. h4 {[%clk 0:02:51]}  b6 {[%clk 0:02:49]} 10. Bg5 {[%clk 0:02:51]}  f6 {[%clk 0:02:46]} 11. exf6 {[%clk 0:02:49]}  gxf6 {[%clk 0:02:47]} 12. Bd2 {[%clk 0:02:49]}  Bb7 {[%clk 0:02:47]} 13. Qe2 {[%clk 0:02:41]}  Qd7 {[%clk 0:02:45]} 14. c4 {[%clk 0:02:41]}  Nb4 {[%clk 0:02:43]} 15. Bxb4 {[%clk 0:02:41]}  cxb4 {[%clk 0:02:44]} 16. d4 {[%clk 0:02:41]}  O-O-O {[%clk 0:02:38]} 17. Rd1 {[%clk 0:02:33]}  Rhg8 {[%clk 0:02:15]} 18. O-O {[%clk 0:02:31]}  h6 {[%clk 0:02:16]} 19. Rfe1 {[%clk 0:02:28]}  Rde8 {[%clk 0:01:57]} 20. c5 {[%clk 0:02:22]}  b5 {[%clk 0:01:55]} 21. Qd2 {[%clk 0:02:19]}  h5 {[%clk 0:01:39]} 22. Qxb4 {[%clk 0:02:15]}  Rg4 {[%clk 0:01:33]} 23. Qb3 {[%clk 0:01:36]}  Kb8 {[%clk 0:01:12]} 24. a4 {[%clk 0:01:25]}  Reg8 {[%clk 0:00:58]} 25. Ng3 {[%clk 0:01:23]}  Bc8 {[%clk 0:00:59]} 26. axb5 {[%clk 0:01:21]}  cxb5 {[%clk 0:00:59]} 27. d5 {[%clk 0:01:17]}  Bxc5 {[%clk 0:00:56]} 28. dxe6 {[%clk 0:01:17]}  Qa7 {[%clk 0:00:35]} 29. Kf1 {[%clk 0:00:54]}  Bxf2 {[%clk 0:00:32]} 30. Re2 {[%clk 0:00:38]}  Bxg3 {[%clk 0:00:27]} 31. e7 {[%clk 0:00:38]}  Be5 {[%clk 0:00:27]} 32. Rxe5 {[%clk 0:00:33]}  fxe5 {[%clk 0:00:27]} 33. Rd8 {[%clk 0:00:18]}  Rxg2 {[%clk 0:00:26]} 34. Nd4 {[%clk 0:00:09]}  Rg1+ {[%clk 0:00:23]} 35. Ke2 {[%clk 0:00:10]}  exd4 {[%clk 0:00:16]} 36. Qe6 {[%clk 0:00:03]}  d3+ {[%clk 0:00:16]} 37. Kd2 {[%clk 0:00:03]}  Qf2+ {[%clk 0:00:15]} 38. Kc3 {[%clk 0:00:03]}  Qc2+ {[%clk 0:00:15]} 39. Kb4 {[%clk 0:00:03]}  Qxb2+ {[%clk 0:00:15]} 40. Ka5 {[%clk 0:00:04]}  Qc3+ {[%clk 0:00:15]} 41. Kb6 {[%clk 0:00:04]}  Qc7# {[%clk 0:00:16]} 0-1


[Site "https://www.chess.com"]

[Event "Titled Tuesday Blitz February 28 Early 2023"]
[White "Subelj, Jan"]
[Black "Stijve, Theo"]
[WhiteFideId "14618583"]
[BlackFideId "1331132"]
[WhiteElo "2480"]
[BlackElo "2256"]
[Result "1-0"]
[Round "07"]
[TimeControl "180+2"]
[Date "2023.02.28"]
[WhiteClock "0:01:28"]
[BlackClock "0:00:13"]

1. e4 {[%clk 0:03:00]}  c5 {[%clk 0:02:56]} 2. Nf3 {[%clk 0:02:55]}  e6 {[%clk 0:02:55]} 3. g3 {[%clk 0:02:50]}  Nc6 {[%clk 0:02:52]} 4. Bg2 {[%clk 0:02:50]}  Nf6 {[%clk 0:02:52]} 5. Qe2 {[%clk 0:02:46]}  e5 {[%clk 0:02:52]} 6. O-O {[%clk 0:02:46]}  d6 {[%clk 0:02:52]} 7. d3 {[%clk 0:02:45]}  Bg4 {[%clk 0:02:44]} 8. c3 {[%clk 0:02:43]}  Qd7 {[%clk 0:02:43]} 9. Bg5 {[%clk 0:02:40]}  Be7 {[%clk 0:02:39]} 10. Nbd2 {[%clk 0:02:41]}  h6 {[%clk 0:02:35]} 11. Bxf6 {[%clk 0:02:40]}  Bxf6 {[%clk 0:02:34]} 12. Nc4 {[%clk 0:02:41]}  h5 {[%clk 0:02:29]} 13. Ne3 {[%clk 0:02:41]}  Ne7 {[%clk 0:02:17]} 14. Nxg4 {[%clk 0:02:24]}  hxg4 {[%clk 0:02:17]} 15. Nd2 {[%clk 0:02:24]}  Bg5 {[%clk 0:01:59]} 16. Nc4 {[%clk 0:02:16]}  b5 {[%clk 0:01:57]} 17. Ne3 {[%clk 0:02:14]}  Bxe3 {[%clk 0:01:52]} 18. fxe3 {[%clk 0:02:15]}  Qe6 {[%clk 0:01:46]} 19. Rf2 {[%clk 0:02:10]}  Rb8 {[%clk 0:01:33]} 20. Raf1 {[%clk 0:02:07]}  Qh6 {[%clk 0:01:27]} 21. Bh1 {[%clk 0:02:05]}  f6 {[%clk 0:01:24]} 22. Qxg4 {[%clk 0:01:59]}  Qxe3 {[%clk 0:01:21]} 23. Qxg7 {[%clk 0:01:56]}  Rg8 {[%clk 0:01:14]} 24. Qxf6 {[%clk 0:01:54]}  Qxd3 {[%clk 0:01:09]} 25. Qe6 {[%clk 0:01:50]}  Qc4 {[%clk 0:00:41]} 26. Qxd6 {[%clk 0:01:44]}  Rd8 {[%clk 0:00:41]} 27. Qxe5 {[%clk 0:01:38]}  Rd3 {[%clk 0:00:38]} 28. Bf3 {[%clk 0:01:32]}  Kd7 {[%clk 0:00:23]} 29. Be2 {[%clk 0:01:32]}  Rdxg3+ {[%clk 0:00:15]} 30. hxg3 {[%clk 0:01:32]}  Qe6 {[%clk 0:00:13]} 31. Bxb5+ {[%clk 0:01:28]} 1-0


[Site "https://www.chess.com"]

[Event "Titled Tuesday Blitz February 28 Early 2023"]
[White "Florescu, Codrut-Constantin"]
[Black "Spata, German"]
[WhiteFideId "1202200"]
[BlackFideId "113026"]
[WhiteElo "2191"]
[BlackElo "2238"]
[Result "1-0"]
[Round "07"]
[TimeControl "180+2"]
[Date "2023.02.28"]
[WhiteClock "0:00:53"]
[BlackClock "0:00:27"]

1. e4 {[%clk 0:03:00]}  g6 {[%clk 0:02:57]} 2. d4 {[%clk 0:03:00]}  Bg7 {[%clk 0:02:57]} 3. Nc3 {[%clk 0:03:00]}  d6 {[%clk 0:02:57]} 4. Bg5 {[%clk 0:03:00]}  h6 {[%clk 0:02:54]} 5. Be3 {[%clk 0:02:59]}  a6 {[%clk 0:02:55]} 6. f3 {[%clk 0:02:54]}  b5 {[%clk 0:02:54]} 7. Qd2 {[%clk 0:02:54]}  Bb7 {[%clk 0:02:53]} 8. h4 {[%clk 0:02:53]}  Nd7 {[%clk 0:02:52]} 9. Nh3 {[%clk 0:02:52]}  c5 {[%clk 0:02:51]} 10. d5 {[%clk 0:02:48]}  Qa5 {[%clk 0:02:43]} 11. Be2 {[%clk 0:02:46]}  Nb6 {[%clk 0:02:34]} 12. O-O {[%clk 0:02:43]}  Nf6 {[%clk 0:02:22]} 13. g4 {[%clk 0:02:41]}  Nfd7 {[%clk 0:02:19]} 14. f4 {[%clk 0:02:31]}  Bxc3 {[%clk 0:02:14]} 15. bxc3 {[%clk 0:02:20]}  Na4 {[%clk 0:02:14]} 16. c4 {[%clk 0:02:17]}  Qxd2 {[%clk 0:01:57]} 17. Bxd2 {[%clk 0:02:18]}  b4 {[%clk 0:01:45]} 18. Bd3 {[%clk 0:02:06]}  a5 {[%clk 0:01:44]} 19. Rae1 {[%clk 0:01:58]}  Ba6 {[%clk 0:01:34]} 20. e5 {[%clk 0:01:59]}  O-O {[%clk 0:01:22]} 21. e6 {[%clk 0:01:56]}  Ndb6 {[%clk 0:01:09]} 22. exf7+ {[%clk 0:01:53]}  Kxf7 {[%clk 0:01:10]} 23. f5 {[%clk 0:01:53]}  Bxc4 {[%clk 0:01:06]} 24. Bxh6 {[%clk 0:01:46]}  Bxd3 {[%clk 0:00:59]} 25. cxd3 {[%clk 0:01:35]}  Rh8 {[%clk 0:00:44]} 26. fxg6+ {[%clk 0:01:15]}  Ke8 {[%clk 0:00:39]} 27. g7 {[%clk 0:01:07]}  Rg8 {[%clk 0:00:39]} 28. Rf8+ {[%clk 0:01:05]}  Kd7 {[%clk 0:00:39]} 29. Rxa8 {[%clk 0:00:53]}  Nxa8 {[%clk 0:00:33]} 30. Rf1 {[%clk 0:00:54]}  N8b6 {[%clk 0:00:27]} 31. Rf8 {[%clk 0:00:53]}  Rxg7 {[%clk 0:00:27]} 32. Bxg7 {[%clk 0:00:54]}  Nxd5 {[%clk 0:00:27]} 33. h5 {[%clk 0:00:53]} 1-0


[Site "https://www.chess.com"]